Workbook

Sheet 1 fascia senza attrezzi
A1: Comitato Regionale Lombardo - Via Ovada, 40 20142 MILANO
B2: Organizzata da: | C2: Ginnika 2001 – Pero
B3: Impianto e Indirizzo: | C3: Palestra Dante Alighieri – Via Giovanni XXIII - Pero - MI
B4: Svoltasi in data: | C4: Domenica 13 Marzo 2016
B5: Disciplina: | C5: Ginnastica per Tutti
A6: Prova di qualificazione Regionale Trofeo Sincrogym - Zona 3
A7: 1° Fascia categoria GOLD - senza attrezzi
A9: CL | B9: SOCIETA' | C9: Prov. | D9: TOTALE SENZA ATTR. | E9: PN | F9: COLLETTIVO SENZA ATTREZZI | J9: COPPIE SENZA ATTREZZI
F10: D | G10: E | H10: PN | I10: TOTALE | J10: ESERCIZIO 1^ COPPIA | K10: ESERCIZIO 2^ COPPIA | L10: PN | M10: TOTALE
A12: 1 | B12: A.S.D. ARTERITMICA PARABIAGO | C12: MI | D12: =I12+M12-E12 -> 75.4 | E12: 0 | F12: 23 | G12: 14.8 | I12: =SUM(F12:G12)-H12 -> 37.8 | J12: 19 | K12: 18.6 | M12: =J12+K12-L12 -> 37.6
A14: CL | B14: SOCIETA' | C14: Prov. | D14: COLLETTIVO SENZA ATTREZZI
D15: D | E15: E | F15: PN | G15: TOTALE
A17: 1 | B17: =B12 -> A.S.D. ARTERITMICA PARABIAGO | C17: MI | D17: =F12 -> 23 | E17: =G12 -> 14.8 | F17: =H12 -> 0 | G17: =SUM(D17:E17)-F17 -> 37.8
A20: CL | B20: SOCIETA' | C20: Prov. | D20: COPPIE SENZA ATTREZZI
D21: ESERCIZIO 1^COPPIA | E21: ESERCIZIO 2^ COPPIA | F21: PN | G21: TOTALE
A23: 1 | B23: =B12 -> A.S.D. ARTERITMICA PARABIAGO | C23: MI | D23: =J12 -> 19 | E23: =K12 -> 18.6 | F23: =L12 -> 0 | G23: =D23+E23-F23 -> 37.6

Sheet 2 fascia senza attrezzi
A1: Comitato Regionale Lombardo - Via Ovada, 40 20142 MILANO
B2: Organizzata da: | C2: Ginnika 2001 – Pero
B3: Impianto e Indirizzo: | C3: Palestra Dante Alighieri – Via Giovanni XXIII - Pero - MI
B4: Svoltasi in data: | C4: Domenica 13 Marzo 2016
B5: Disciplina: | C5: Ginnastica per Tutti
A6: Prova di qualificazione Regionale Trofeo Sincrogym - Zona 3
A7: 2° Fascia categoria GOLD - senza attrezzi
A9: CL | B9: SOCIETA' | C9: Prov. | D9: TOTALE SENZA ATTR. | E9: PN | F9: COLLETTIVO SENZA ATTREZZI | J9: COPPIE SENZA ATTREZZI
F10: D | G10: E | H10: PN | I10: TOTALE | J10: ESERCIZIO 1^ COPPIA | K10: ESERCIZIO 2^ COPPIA | L10: PN | M10: TOTALE
A12: 1 | B12: A.S.D.RITMICA RHO | C12: MI | D12: =I12+M12-E12 -> 77.8 | E12: 0 | F12: 23 | G12: 16 | I12: =SUM(F12:G12)-H12 -> 39 | J12: 19.2 | K12: 19.6 | M12: =J12+K12-L12 -> 38.8
A13: =A12+1 -> 2 | B13: A.S.D. ARTERITMICA PARABIAGO | C13: MI | D13: 75.5 | E13: 0 | F13: 23 | G13: 15.1 | I13: 38.1 | J13: 18.7 | K13: 18.7 | M13: =J13+K13-L13 -> 37.4
A15: CL | B15: SOCIETA' | C15: Prov. | D15: COLLETTIVO SENZA ATTREZZI
D16: D | E16: E | F16: PN | G16: TOTALE
A18: 1 | B18: =B12 -> A.S.D.RITMICA RHO | C18: MI | D18: =F12 -> 23 | E18: 16 | F18: 0 | G18: =SUM(D18:E18)-F18 -> 39
A19: =A18+1 -> 2 | B19: =B13 -> A.S.D. ARTERITMICA PARABIAGO | C19: MI | D19: 23 | E19: 15.1 | F19: 0 | G19: 38.1
A22: CL | B22: SOCIETA' | C22: Prov. | D22: COPPIE SENZA ATTREZZI
D23: ESERCIZIO 1^COPPIA | E23: ESERCIZIO 2^ COPPIA | F23: PN | G23: TOTALE
A25: 1 | B25: =B12 -> A.S.D.RITMICA RHO | C25: MI | D25: =J12 -> 19.2 | E25: 19.6 | F25: 0 | G25: =D25+E25-F25 -> 38.8
A26: =A25+1 -> 2 | B26: =B13 -> A.S.D. ARTERITMICA PARABIAGO | C26: MI | D26: 18.7 | E26: 18.7 | F26: 0 | G26: =D26+E26-F26 -> 37.4

Sheet 2 fascia con attrezzi
A1: Comitato Regionale Lombardo - Via Ovada, 40 20142 MILANO
B2: Organizzata da: | C2: Ginnika 2001 – Pero
B3: Impianto e Indirizzo: | C3: Palestra Dante Alighieri – Via Giovanni XXIII - Pero - MI
B4: Svoltasi in data: | C4: Domenica 13 Marzo 2016
B5: Disciplina: | C5: Ginnastica per Tutti
A6: Prova di qualificazione Regionale Trofeo Sincrogym - Zona 3
A7: 2° Fascia categoria GOLD - con attrezzi
A9: CL | B9: SOCIETA' | C9: Prov. | D9: TOTALE CON ATTR. | E9: PN | F9: COLLETTIVO CON ATTREZZI | J9: COPPIE CON ATTREZZI
F10: D | G10: E | H10: PN | I10: TOTALE | J10: ESERCIZIO 1^ COPPIA | K10: ESERCIZIO 2^ COPPIA | L10: PN | M10: TOTALE
A12: =A11+1 -> 1 | B12: A.S.D. SOC. GINNASTICA SKILL | C12: MI | D12: =I12+M12-E12 -> 70.9 | E12: 0 | F12: 22 | G12: 13.1 | I12: =SUM(F12:G12)-H12 -> 35.1 | J12: 17.8 | K12: 18 | M12: =J12+K12-L12 -> 35.8
A13: 2 | B13: A.S.D. GINNASTICA MODERNA LEGNANO | C13: MI | D13: =I13+M13-E13 -> 70 | E13: 0 | F13: 22 | G13: 13.6 | I13: =SUM(F13:G13)-H13 -> 35.6 | J13: 17.6 | K13: 16.8 | M13: =J13+K13-L13 -> 34.4
A15: CL | B15: SOCIETA' | C15: Prov. | D15: COLLETTIVO CON ATTREZZI
D16: D | E16: E | F16: PN | G16: TOTALE
A18: 1 | B18: =B13 -> A.S.D. GINNASTICA MODERNA LEGNANO | C18: =C13 -> MI | D18: =F13 -> 22 | E18: =G13 -> 13.6 | F18: =H13 -> 0 | G18: =SUM(D18:E18)-F18 -> 35.6
A19: 2 | B19: =B12 -> A.S.D. SOC. GINNASTICA SKILL | C19: =C12 -> MI | D19: =F12 -> 22 | E19: =G12 -> 13.1 | F19: =H12 -> 0 | G19: =SUM(D19:E19)-F19 -> 35.1
A22: CL | B22: SOCIETA' | C22: Prov. | D22: COPPIE CON ATTREZZI
D23: ESERCIZIO 1^COPPIA | E23: ESERCIZIO 2^ COPPIA | F23: PN | G23: TOTALE
A25: 1 | B25: =B12 -> A.S.D. SOC. GINNASTICA SKILL | C25: =C12 -> MI | D25: =J12 -> 17.8 | E25: 18 | F25: 0 | G25: =D25+E25-F25 -> 35.8
A26: =A25+1 -> 2 | B26: =B13 -> A.S.D. GINNASTICA MODERNA LEGNANO | C26: =C13 -> MI | D26: 17.6 | E26: 16.8 | F26: 0 | G26: =D26+E26-F26 -> 34.4

Sheet 3-4 fascia con attrezzi
A1: Comitato Regionale Lombardo - Via Ovada, 40 20142 MILANO
B2: Organizzata da: | C2: Ginnika 2001 – Pero
B3: Impianto e Indirizzo: | C3: Palestra Dante Alighieri – Via Giovanni XXIII - Pero - MI
B4: Svoltasi in data: | C4: Domenica 13 Marzo 2016
B5: Disciplina: | C5: Ginnastica per Tutti
A6: Prova di qualificazione Regionale Trofeo Sincrogym - Zona 3
A7: 3°- 4° Fascia categoria GOLD - con attrezzi
A9: CL | B9: SOCIETA' | C9: Prov. | D9: TOTALE SENZA ATTR. | E9: PN | F9: COLLETTIVO CON ATTREZZI | J9: COPPIE CON ATTREZZI
F10: D | G10: E | H10: PN | I10: TOTALE | J10: ESERCIZIO 1^ COPPIA | K10: ESERCIZIO 2^ COPPIA | L10: PN | M10: TOTALE
A12: 1 | B12: A.S.D. ARTERITMICA PARABIAGO | C12: MI | D12: =I12+M12-E12 -> 72.6 | E12: 0 | F12: 22 | G12: 15 | I12: =SUM(F12:G12)-H12 -> 37 | J12: 17.7 | K12: 17.9 | M12: =J12+K12-L12 -> 35.6
A13: =A12+1 -> 2 | B13: A.S.D. SOC GINNASRICA SKILL | C13: MI | D13: 71.8 | E13: 0 | F13: 22 | G13: 15.7 | I13: 37.7 | J13: 16.6 | K13: 17.5 | M13: =J13+K13-L13 -> 34.1
A14: =A13+1 -> 3 | B14: A.S.D. GYMNASIUM 97 | C14: MI | D14: 71.6 | E14: 0 | F14: 22 | G14: 14.5 | I14: 36.5 | J14: 17.4 | K14: 17.7 | M14: =J14+K14-L14 -> 35.1
A16: CL | B16: SOCIETA' | C16: Prov. | D16: COLLETTIVO CON ATTREZZI
D17: D | E17: E | F17: PN | G17: TOTALE
A19: 1 | B19: =B13 -> A.S.D. SOC GINNASRICA SKILL | C19: MI | D19: =F13 -> 22 | E19: =G13 -> 15.7 | F19: =H13 -> 0 | G19: =SUM(D19:E19)-F19 -> 37.7
A20: 2 | B20: =B12 -> A.S.D. ARTERITMICA PARABIAGO | C20: MI | D20: =F12 -> 22 | E20: =G12 -> 15 | F20: =H12 -> 0 | G20: 37
A21: 3 | B21: =B14 -> A.S.D. GYMNASIUM 97 | C21: MI | D21: =F14 -> 22 | E21: =G14 -> 14.5 | F21: =H14 -> 0 | G21: 36.5
A24: CL | B24: SOCIETA' | C24: Prov. | D24: COPPIE CON ATTREZZI
D25: ESERCIZIO 1^ COPPIA | E25: ESERCIZIO 2^ COPPIA | F25: PN | G25: TOTALE | P25: PP
A27: 1 | B27: =B12 -> A.S.D. ARTERITMICA PARABIAGO | C27: MI | D27: =J12 -> 17.7 | E27: =K12 -> 17.9 | F27: =L12 -> 0 | G27: =D27+E27-F27 -> 35.6
A28: 2 | B28: =B14 -> A.S.D. GYMNASIUM 97 | C28: MI | D28: =J14 -> 17.4 | E28: =K14 -> 17.7 | F28: =L14 -> 0 | G28: =D28+E28-F28 -> 35.1
A29: 3 | B29: =B13 -> A.S.D. SOC GINNASRICA SKILL | C29: MI | D29: =J13 -> 16.6 | E29: =K13 -> 17.5 | F29: =L13 -> 0 | G29: =D29+E29-F29 -> 34.1

Sheet 3-4 fascia senza attrezzi
A1: Comitato Regionale Lombardo - Via Ovada, 40 20142 MILANO
B2: Organizzata da: | C2: Ginnika 2001 – Pero
B3: Impianto e Indirizzo: | C3: Palestra Dante Alighieri – Via Giovanni XXIII - Pero - MI
B4: Svoltasi in data: | C4: Domenica 13 Marzo 2016
B5: Disciplina: | C5: Ginnastica per Tutti
A6: Prova di qualificazione Regionale Trofeo Sincrogym - Zona 3
A7: 3°- 4° Fascia categoria GOLD - senza attrezzi
A9: CL | B9: SOCIETA' | C9: Prov. | D9: TOTALE SENZA ATTR. | E9: PN | F9: COLLETTIVO SENZA ATTREZZI | J9: COPPIE SENZA ATTREZZI
F10: D | G10: E | H10: PN | I10: TOTALE | J10: ESERCIZIO 1^ COPPIA | K10: ESERCIZIO 2^ COPPIA | L10: PN | M10: TOTALE
A12: 1 | B12: A.S.D. RITMICA RHO | C12: MI | D12: =I12+M12-E12 -> 76.9 | E12: 0 | F12: 23 | G12: 15.7 | I12: =SUM(F12:G12)-H12 -> 38.7 | J12: 19.3 | K12: 18.9 | M12: =J12+K12-L12 -> 38.2
A13: =A12+1 -> 2 | B13: A.S.D. ARTERITMICA PARABIAGO | C13: MI | D13: =I13+M13-E13 -> 76.7 | E13: 0 | F13: 23 | G13: 15.5 | I13: =SUM(F13:G13)-H13 -> 38.5 | J13: 18.7 | K13: 19.5 | M13: =J13+K13-L13 -> 38.2
A14: =A13+1 -> 3 | B14: A.S.D. GYMNASIUM 97 | C14: MI | D14: =I14+M14-E14 -> 76.3 | E14: 0 | F14: 23 | G14: 15.3 | I14: =SUM(F14:G14)-H14 -> 38.3 | J14: 19.1 | K14: 18.9 | M14: =J14+K14-L14 -> 38
A16: CL | B16: SOCIETA' | C16: Prov. | D16: COLLETTIVO SENZA ATTREZZI
D17: D | E17: E | F17: PN | G17: TOTALE
A19: 1 | B19: =B12 -> A.S.D. RITMICA RHO | D19: =F12 -> 23 | E19: 15.7 | F19: 0 | G19: =SUM(D19:E19)-F19 -> 38.7
A20: =A19+1 -> 2 | B20: =B13 -> A.S.D. ARTERITMICA PARABIAGO | D20: 23 | E20: 15.5 | F20: 0 | G20: =SUM(D20:E20)-F20 -> 38.5
A21: =A20+1 -> 3 | B21: =B14 -> A.S.D. GYMNASIUM 97 | D21: 23 | E21: 15.3 | F21: 0 | G21: =SUM(D21:E21)-F21 -> 38.3
A24: CL | B24: SOCIETA' | C24: Prov. | D24: COPPIE SENZA ATTREZZI
D25: ESERCIZIO 1^ COPPIA | E25: ESERCIZIO 2^ COPPIA | F25: PN | G25: TOTALE
A27: 1 | B27: =B12 -> A.S.D. RITMICA RHO | D27: =J12 -> 19.3 | E27: 18.9 | F27: 0 | G27: =D27+E27-F27 -> 38.2
A28: 1 | B28: =B13 -> A.S.D. ARTERITMICA PARABIAGO | D28: 18.7 | E28: 19.5 | F28: 0 | G28: =D28+E28-F28 -> 38.2
A29: 3 | B29: A.S.D. GYMNASIUM 97 | D29: 19.1 | E29: 18.9 | F29: 0 | G29: =D29+E29-F29 -> 38
